fUST/lending_fUST_20240511
["ID","MTS","AMOUNT","RATE_DAILY","PERIOD"]
[326799511,1715381495572,-1070.51,0.00065753,120]
[326799512,1715381495581,-500.0,0.00065753,120]
[326799513,1715381495590,-757.61,0.00065753,120]
[326799514,1715381495599,-4210.69,0.00065753,120]
[326799515,1715381495608,-2993.37,0.00065753,120]
[326799516,1715381495617,-551.15,0.00065753,120]
[326799517,1715381495626,-500.0,0.00065753,120]
[326799518,1715381495635,-500.0,0.00065753,120]
[326799519,1715381495644,-500.0,0.00065753,120]
[326799520,1715381495653,-733.98,0.00065753,120]
[326799521,1715381495663,-500.0,0.00065753,120]
[326799522,1715381495672,-4672.91,0.00065753,120]
[326799523,1715381495682,-1818.74,0.00065753,120]
[326799524,1715381495691,-397.82674897,0.00065753,120]
[326799525,1715381495700,-500.0,0.00065753,120]
[326799526,1715381495709,-527.33,0.00065753,120]
[326799527,1715381495718,-500.0,0.00065753,120]
[326799528,1715381495728,-205.91775931,0.00065753,120]
[326799529,1715381495737,-429.47583295,0.00065753,120]
[326799530,1715381495748,-536.65133133,0.00065753,120]
[326799531,1715381495757,-500.0,0.00065753,120]
[326799532,1715381495766,-500.0,0.00065753,120]
[326799533,1715381495775,-1189.78,0.00065753,120]
[326799534,1715381495784,-580.1,0.00065753,120]
[326799535,1715381495793,-837.42,0.00065753,120]
[326799536,1715381495802,-599.74,0.00065753,120]
[326799537,1715381495811,-1366.53,0.00065753,7]
[326799538,1715381495821,-500.0,0.00065753,120]
[326799539,1715381495830,-549.67,0.00065753,120]
[326799540,1715381495839,-638.03,0.00065753,120]
[326799541,1715381495848,-500.0,0.00065753,120]
[326799542,1715381495857,-500.0,0.00065753,120]
[326799543,1715381495866,-9331.73,0.00065753,120]
[326799544,1715381495875,-500.0,0.00065753,120]
[326799545,1715381495884,-500.0,0.00065753,120]
[326799546,1715381495893,-500.0,0.00065753,120]
[326799547,1715381495902,-2272.92,0.00065753,120]
[326799548,1715381495913,-623.13,0.00065753,120]
[326799549,1715381495923,-500.0,0.00065753,120]
[326799550,1715381495932,-3952.33,0.00065753,120]
[326799551,1715381495942,-1021.55,0.00065753,120]
[326799552,1715381495951,-728.64,0.00065753,120]
[326799553,1715381495961,-7667.9,0.00065753,120]
[326799554,1715381495970,-570.68,0.00065753,120]
[326799555,1715381495979,-3673.96,0.00065753,120]
[326799556,1715381495988,-500.0,0.00065753,120]
[326799557,1715381495997,-235.92769524,0.00065753,120]
[326799558,1715381496006,-500.0,0.00065753,120]
[326799559,1715381496016,-2110.2,0.00065753,120]
[326799560,1715381496025,-500.0,0.00065753,120]
[326799561,1715381496035,-8336.17,0.00065753,120]
[326799562,1715381496044,-500.0,0.00065753,120]
[326799563,1715381496053,-1410.23,0.00065753,120]
[326799564,1715381496062,-1154.88,0.00065753,120]
[326799565,1715381496071,-8703.16,0.00065753,120]
[326799566,1715381496080,-536.24,0.00065753,120]
[326799567,1715381496090,-751.25,0.00065753,120]
[326799568,1715381496099,-500.0,0.00065753,120]
[326799569,1715381496108,-500.0,0.00065753,120]
[326799570,1715381496117,-745.85,0.00065753,120]
[326799571,1715381496126,-1112.7,0.00065753,120]
[326799572,1715381496136,-3156.04,0.00065753,120]
[326799573,1715381496145,-500.0,0.00065753,120]
[326799574,1715381496155,-1283.02,0.00065753,120]
[326799575,1715381496164,-1747.91,0.00065753,120]
[326799576,1715381496175,-500.0,0.00065753,120]
[326799577,1715381496186,-500.0,0.00065753,120]
[326799578,1715381496195,-170.11395205,0.00065753,120]
[326799579,1715381496205,-924.27,0.00065753,120]
[326799580,1715381496214,-500.0,0.00065753,120]
[326799581,1715381496223,-500.0,0.00065753,120]
[326799582,1715381496234,-585.25,0.00065753,120]
[326799583,1715381496243,-500.0,0.00065753,120]
[326799584,1715381496252,-790.87,0.00065753,120]
[326799585,1715381496264,-500.0,0.00065753,120]
[326799586,1715381496274,-1269.11,0.00065753,120]
[326799587,1715381496283,-5883.06,0.00065753,120]
[326799588,1715381496292,-1859.96,0.00065753,120]
[326799589,1715381496300,-500.0,0.00065753,120]
[326799590,1715381496310,-541.79831588,0.00065753,120]
[326799591,1715381496318,-1701.09,0.00065753,120]
[326799592,1715381496327,-1691.53,0.00065753,120]
[326799593,1715381496336,-632.32,0.00065753,60]
[326799594,1715381496346,-3991.97,0.00065753,120]
[326799595,1715381496355,-592.96,0.00065753,120]
[326799596,1715381496364,-500.0,0.00065753,120]
[326799597,1715381496373,-783.68,0.00065753,120]
[326799598,1715381496382,-4891.99,0.00065753,21]
[326799599,1715381496391,-2531.38,0.00065753,120]
[326799600,1715381496400,-500.0,0.00065753,120]
[326799601,1715381496409,-500.0,0.00065753,120]
[326799602,1715381496419,-2025.54,0.00065753,120]
[326799603,1715381496428,-906.96,0.00065753,120]
[326799604,1715381496437,-47405.75,0.00065753,120]
[326799605,1715381496447,-2056.13,0.00065753,120]
[326799606,1715381496458,-527.17040696,0.00065753,120]
[326799607,1715381496467,-643.51,0.00065753,120]
[326799608,1715381496476,-852.8,0.00065753,120]
[326799609,1715381496486,-8527.55,0.00065753,120]
[326799610,1715381496496,-972.54,0.00065753,120]
[326799611,1715381496506,-3524.89,0.00065753,2]
[326799612,1715381496516,-546.11,0.00065753,120]
[326799613,1715381496525,-500.0,0.00065753,120]
[326799614,1715381496535,-500.0,0.00065753,120]
[326799615,1715381496545,-1320.33,0.00065753,2]
[326799616,1715381496555,-560.85,0.00065753,120]
[326799617,1715381496564,-715.77,0.00065753,120]
[326799618,1715381496573,-728.84,0.00065753,120]
[326799619,1715381496581,-1524.6,0.00065753,120]
[326799620,1715381496590,-500.0,0.00065753,120]
[326799621,1715381496599,-2617.66,0.00065753,120]
[326799622,1715381496608,-1552.09,0.00065753,120]
[326799623,1715381496617,-1408.03,0.00065753,120]
[326799624,1715381496626,-418.81033219,0.00065753,120]
[326799625,1715381496635,-709.54,0.00065753,120]
[326799626,1715381496644,-2955.83,0.00065753,120]
[326799627,1715381496654,-500.0,0.00065753,120]
[326799628,1715381496663,-679.75,0.00065753,120]
[326799629,1715381496672,-525.15,0.00065753,120]
[326799630,1715381496681,-671.41,0.00065753,120]
[326799631,1715381496690,-17679.9,0.00065753,120]
[326799632,1715381496699,-500.0,0.00065753,120]
[326799633,1715381496709,-1500.0,0.00065753,120]
[326799634,1715381496719,-4314.35,0.00065753,120]
[326799635,1715381496728,-365.70859293,0.00065753,120]
[326799636,1715381496737,-500.0,0.00065753,120]
[326799637,1715381496747,-680.13,0.00065753,120]
[326799638,1715381496756,-581.55629941,0.00065753,120]
[326799639,1715381496765,-500.0,0.00065753,120]
[326799640,1715381496774,-621.8,0.00065753,120]
[326799641,1715381496783,-9229.8,0.00065753,120]
[326799642,1715381496792,-990.56,0.00065753,120]
[326799643,1715381496801,-500.0,0.00065753,120]
[326799644,1715381496810,-1953.0,0.00065753,120]
[326799645,1715381496819,-500.0,0.00065753,120]
[326799646,1715381496828,-1273.71,0.00065753,120]
[326799647,1715381496837,-510.44,0.00065753,2]
[326799648,1715381496846,-1389.39,0.00065753,120]
[326799649,1715381496856,-300.0,0.00065753,7]
[326799650,1715381496865,-3744.03,0.00065753,120]
[326799651,1715381496875,-1011.1,0.00065753,120]
[326799652,1715381496884,-500.0,0.00065753,120]
[326799653,1715381496893,-650.98,0.00065753,120]
[326799654,1715381496902,-150.1,0.00065753,120]
[326799655,1715381496911,-500.0,0.00065753,120]
[326799656,1715381496920,-500.0,0.00065753,120]
[326799657,1715381496930,-566.32,0.00065753,120]
[326799658,1715381496939,-5009.77,0.00065753,120]
[326799659,1715381496948,-1798.14077635,0.00065908,120]
[326799660,1715381496957,-150.0,0.0006595,2]
[326799661,1715381496966,-157.99940941,0.00065956,120]
[326799662,1715381496975,-153.0,0.00066301,60]
[326799663,1715381496987,-153.0,0.00066301,60]
[326799664,1715381496995,-153.0,0.00066301,60]
[326799665,1715381497005,-153.0,0.00066301,60]
[326799666,1715381497014,-153.0,0.00066301,60]
[326799667,1715381497024,-153.0,0.00066301,60]
[326799668,1715381497032,-1798.14077635,0.0006633,120]
[326799669,1715381497041,-1412.8469889,0.00066422,120]
[326799670,1715381497050,-150.0,0.00066509,2]
[326799671,1715381497060,-602.21,0.00066849,120]
[326799672,1715381497069,-500.0,0.00066849,120]
[326799673,1715381497078,-500.0,0.00066849,120]
[326799674,1715381497087,-500.0,0.00066849,120]
[326799675,1715381497096,-500.0,0.00066849,120]
[326799676,1715381497104,-500.0,0.00066849,120]
[326799677,1715381497113,-1165.04,0.00066849,120]
[326799678,1715381497122,-500.0,0.00066849,120]
[326799679,1715381497131,-549.89,0.00066849,120]
[326799680,1715381497140,-500.0,0.00066849,7]
[326799681,1715381497149,-500.0,0.00066849,120]
[326799682,1715381497158,-500.0,0.00066849,120]
[326799683,1715381497167,-500.0,0.00066849,120]
[326799684,1715381497179,-500.0,0.00066849,120]
[326799685,1715381497188,-500.0,0.00066849,120]
[326799686,1715381497197,-2148.21,0.00066849,120]
[326799687,1715381497206,-609.89,0.00066849,120]
[326799688,1715381497217,-500.0,0.00066849,120]
[326799689,1715381497226,-500.0,0.00066849,120]
[326799690,1715381497238,-500.0,0.00066849,120]
[326799691,1715381497247,-500.0,0.00066849,120]
[326799692,1715381497261,-574.68,0.00066849,120]
[326799693,1715381497270,-541.11,0.00066849,120]
[326799694,1715381497279,-500.0,0.00066849,120]
[326799695,1715381497289,-500.0,0.00066849,120]
[326799696,1715381497299,-336.20039459,0.00066849,120]
[326799697,1715381497308,-1271.67,0.00066849,7]
[326799698,1715381497318,-500.0,0.00066849,120]
[326799699,1715381497327,-1161.06,0.00066849,120]
[326799700,1715381497337,-500.0,0.00066849,120]
[326799701,1715381497346,-664.96,0.00066849,120]
[326799702,1715381497355,-606.82,0.00066849,120]
[326799703,1715381497364,-2047.19,0.00066849,120]
[326799704,1715381497373,-500.0,0.00066849,120]
[326799705,1715381497383,-666.88,0.00066849,120]
[326799706,1715381497392,-744.8,0.00066849,120]
[326799707,1715381497401,-2115.98,0.00066849,4]
[326799708,1715381497410,-671.73,0.00066849,120]
[326799709,1715381497419,-1253.15,0.00066849,120]
[326799710,1715381497428,-2379.45,0.00066849,120]
[326799711,1715381497437,-591.68,0.00066849,120]
[326799712,1715381497446,-500.0,0.00066849,120]
[326799713,1715381497455,-576.78,0.00066849,120]
[326799714,1715381497464,-437.18923519,0.00066849,120]
[326799715,1715381497474,-500.0,0.00066849,120]
[326799716,1715381497484,-534.42,0.00066849,120]
[326799717,1715381497494,-500.0,0.00066849,120]
[326799718,1715381497503,-500.0,0.00066849,120]
[326799719,1715381497512,-500.0,0.00066849,120]
[326799720,1715381497521,-1078.44,0.00066849,120]
[326799721,1715381497531,-500.0,0.00066849,120]
[326799722,1715381497540,-636.43767043,0.00066849,120]
[326799723,1715381497549,-1489.95,0.00066849,120]
[326799724,1715381497559,-500.0,0.00066849,120]
[326799725,1715381497568,-500.0,0.00066849,120]
[326799726,1715381497579,-1505.02,0.00066849,120]
[326799727,1715381497589,-821.7,0.00066849,120]
[326799728,1715381497715,-847.21,0.00066849,120]
[326799729,1715381497725,-500.0,0.00066849,120]
[326799730,1715381497735,-500.0,0.00066849,120]
[326799731,1715381497744,-1744.14,0.00066849,2]
[326799732,1715381497753,-1487.03,0.00066849,120]
[326799733,1715381497762,-500.0,0.00066849,120]
[326799734,1715381497771,-500.0,0.00066849,120]
[326799735,1715381497781,-500.0,0.00066849,120]
[326799736,1715381497790,-2725.02,0.00066849,120]
[326799737,1715381497799,-1524.58,0.00066849,120]
[326799738,1715381497809,-621.58,0.00066849,120]
[326799739,1715381497819,-550.87,0.00066849,120]
[326799740,1715381497828,-670.43,0.00066849,120]
[326799741,1715381497838,-1135.37,0.00066849,120]
[326799742,1715381497847,-515.4,0.00066849,120]
[326799743,1715381497858,-500.0,0.00066849,120]
[326799744,1715381497868,-700.54,0.00066849,120]
[326799745,1715381497877,-565.96,0.00066849,120]
[326799746,1715381497887,-500.0,0.00066849,120]
[326799747,1715381497896,-2668.96,0.00066849,120]
[326799748,1715381497905,-571.02,0.00066849,120]
[326799749,1715381497916,-500.0,0.00066849,120]
[326799750,1715381497925,-820.35,0.00066849,120]
[326799751,1715381497935,-500.0,0.00066849,120]
[326799752,1715381497944,-501.21,0.00066849,120]
[326799753,1715381497954,-500.0,0.00066849,120]
[326799754,1715381497963,-500.0,0.00066849,120]
[326799755,1715381497973,-598.13,0.00066849,120]
[326799756,1715381497983,-967.26,0.00066849,120]
[326799757,1715381497992,-819.54,0.00066849,120]
[326799758,1715381498001,-500.0,0.00066849,120]
[326799759,1715381498011,-509.72683328,0.00066849,120]
[326799760,1715381498020,-500.0,0.00066849,120]
[326799761,1715381498029,-620.58,0.00066849,120]
[326799762,1715381498038,-500.0,0.00066849,120]
[326799763,1715381498047,-594.58,0.00066849,120]
[326799764,1715381498057,-500.0,0.00066849,120]
[326799765,1715381498066,-819.92,0.00066849,120]
[326799766,1715381498076,-500.0,0.00066849,120]
[326799767,1715381498085,-678.91,0.00066849,120]
[326799768,1715381498094,-500.0,0.00066849,120]
[326799769,1715381498103,-610.7,0.00066849,120]
[326799770,1715381498112,-648.3,0.00066849,120]
[326799771,1715381498121,-500.0,0.00066849,120]
[326799772,1715381498130,-500.0,0.00066849,120]
[326799773,1715381498139,-500.0,0.00066849,120]
[326799774,1715381498148,-873.9,0.00066849,120]
[326799775,1715381498157,-500.0,0.00066849,120]
[326799776,1715381498167,-780.28,0.00066849,120]
[326799777,1715381498180,-2756.4,0.00066849,120]
[326799778,1715381498190,-1210.86,0.00066849,120]
[326799779,1715381498198,-1070.89,0.00066849,120]
[326799780,1715381498207,-1070.51,0.00066849,120]
[326799781,1715381498216,-500.0,0.00066849,120]
[326799782,1715381498229,-757.61,0.00066849,120]
[326799783,1715381498239,-4210.69,0.00066849,120]
[326799784,1715381498248,-2993.37,0.00066849,120]
[326799785,1715381498259,-551.15,0.00066849,120]
[326799786,1715381498269,-500.0,0.00066849,120]
[326799787,1715381498278,-500.0,0.00066849,120]
[326799788,1715381498287,-500.0,0.00066849,120]
[326799789,1715381498296,-733.98,0.00066849,120]
[326799790,1715381498304,-500.0,0.00066849,120]
[326799791,1715381498313,-4672.91,0.00066849,120]
[326799792,1715381498322,-1818.74,0.00066849,120]
[326799793,1715381498332,-500.0,0.00066849,120]
[326799794,1715381498341,-527.33,0.00066849,120]
[326799795,1715381498350,-500.0,0.00066849,120]
[326799796,1715381498359,-500.0,0.00066849,120]
[326799797,1715381498368,-500.0,0.00066849,120]
[326799798,1715381498378,-1189.78,0.00066849,120]
[326799799,1715381498387,-580.1,0.00066849,120]
[326799800,1715381498396,-837.42,0.00066849,120]
[326799801,1715381498405,-599.74,0.00066849,120]
[326799802,1715381498414,-1366.53,0.00066849,7]
[326799803,1715381498423,-500.0,0.00066849,120]
[326799804,1715381498432,-549.67,0.00066849,120]
[326799805,1715381498441,-638.03,0.00066849,120]
[326799806,1715381498450,-500.0,0.00066849,120]
[326799807,1715381498459,-192.30971176,0.00066849,120]
[326799808,1715381498468,-9331.73,0.00066849,120]
[326799809,1715381498477,-500.0,0.00066849,120]
[326799810,1715381498488,-500.0,0.00066849,120]
[326799811,1715381498497,-500.0,0.00066849,120]
[326799812,1715381498507,-2272.92,0.00066849,120]
[326799813,1715381498516,-623.13,0.00066849,120]
[326799814,1715381498525,-500.0,0.00066849,120]
[326799815,1715381498534,-3952.33,0.00066849,120]
[326799816,1715381498544,-1021.55,0.00066849,120]
[326799817,1715381498553,-728.64,0.00066849,120]
[326799818,1715381498562,-7667.9,0.00066849,120]
[326799819,1715381498571,-570.68,0.00066849,120]
[326799820,1715381498580,-3673.96,0.00066849,120]
[326799821,1715381498590,-500.0,0.00066849,120]
[326799822,1715381498599,-500.0,0.00066849,120]
[326799823,1715381498607,-2110.2,0.00066849,120]
[326799824,1715381498616,-397.75713215,0.00066849,120]
[326799825,1715381498625,-8336.17,0.00066849,120]
[326799826,1715381498634,-500.0,0.00066849,120]
[326799827,1715381498643,-1410.23,0.00066849,120]
[326799828,1715381498653,-1154.88,0.00066849,120]
[326799829,1715381498662,-8703.16,0.00066849,120]
[326799830,1715381498671,-536.24,0.00066849,120]
[326799831,1715381498680,-751.25,0.00066849,120]
[326799832,1715381498689,-500.0,0.00066849,120]
[326799833,1715381498698,-500.0,0.00066849,120]
[326799834,1715381498708,-745.85,0.00066849,120]
[326799835,1715381498717,-1112.7,0.00066849,120]
[326799836,1715381498726,-3156.04,0.00066849,120]
[326799837,1715381498736,-277.08763072,0.00066849,120]
[326799838,1715381498745,-1283.02,0.00066849,120]
[326799839,1715381498754,-1747.91,0.00066849,120]
[326799840,1715381498764,-500.0,0.00066849,120]
[326799841,1715381498774,-500.0,0.00066849,120]
[326799842,1715381498783,-924.27,0.00066849,120]
[326799843,1715381498792,-500.0,0.00066849,120]
[326799844,1715381498801,-500.0,0.00066849,120]
[326799845,1715381498810,-585.25,0.00066849,120]
[326799846,1715381498819,-500.0,0.00066849,120]
[326799847,1715381498828,-790.87,0.00066849,120]
[326799848,1715381498837,-500.0,0.00066849,120]
[326799849,1715381498846,-1269.11,0.00066849,120]
[326799850,1715381498855,-5883.06,0.00066849,120]
[326799851,1715381498864,-1859.96,0.00066849,120]
[326799852,1715381498873,-500.0,0.00066849,120]
[326799853,1715381498883,-1701.09,0.00066849,120]
[326799854,1715381498892,-1691.53,0.00066849,120]
[326799855,1715381498901,-632.32,0.00066849,60]
[326799856,1715381498910,-3991.97,0.00066849,120]
[326799857,1715381498919,-592.96,0.00066849,120]
[326799858,1715381498928,-500.0,0.00066849,120]
[326799859,1715381498937,-783.68,0.00066849,120]
[326799860,1715381498945,-4891.99,0.00066849,21]
[326799861,1715381498954,-2531.38,0.00066849,120]
[326799862,1715381498963,-500.0,0.00066849,120]
[326799863,1715381498972,-500.0,0.00066849,120]
[326799864,1715381498981,-2025.54,0.00066849,120]
[326799865,1715381498989,-906.96,0.00066849,120]
[326799866,1715381498998,-47405.75,0.00066849,120]
[326799867,1715381499007,-2056.13,0.00066849,120]
[326799868,1715381499016,-643.51,0.00066849,120]
[326799869,1715381499025,-852.8,0.00066849,120]
[326799870,1715381499034,-8527.55,0.00066849,120]
[326799871,1715381499043,-972.54,0.00066849,120]
[326799872,1715381499053,-3524.89,0.00066849,2]
[326799873,1715381499062,-546.11,0.00066849,120]
[326799874,1715381499071,-500.0,0.00066849,120]
[326799875,1715381499081,-500.0,0.00066849,120]
[326799876,1715381499090,-1320.33,0.00066849,2]
[326799877,1715381499099,-560.85,0.00066849,120]
[326799878,1715381499108,-715.77,0.00066849,120]
[326799879,1715381499117,-728.84,0.00066849,120]
[326799880,1715381499126,-1524.6,0.00066849,120]
[326799881,1715381499134,-500.0,0.00066849,120]
[326799882,1715381499143,-2617.66,0.00066849,120]
[326799883,1715381499151,-1552.09,0.00066849,120]
[326799884,1715381499160,-1408.03,0.00066849,120]
[326799885,1715381499170,-709.54,0.00066849,120]
[326799886,1715381499183,-2955.83,0.00066849,120]
[326799887,1715381499192,-500.0,0.00066849,120]
[326799888,1715381499201,-679.75,0.00066849,120]
[326799889,1715381499210,-525.15,0.00066849,120]
[326799890,1715381499221,-671.41,0.00066849,120]
[326799891,1715381499229,-17679.9,0.00066849,120]
[326799892,1715381499239,-500.0,0.00066849,120]
[326799893,1715381499248,-1500.0,0.00066849,120]
[326799894,1715381499258,-4314.35,0.00066849,120]
[326799895,1715381499268,-500.0,0.00066849,120]
[326799896,1715381499277,-680.13,0.00066849,120]
[326799897,1715381499286,-500.0,0.00066849,120]
[326799898,1715381499294,-9229.8,0.00066849,120]
[326799899,1715381499303,-990.56,0.00066849,120]
[326799900,1715381499312,-500.0,0.00066849,120]
[326799901,1715381499321,-1953.0,0.00066849,120]
[326799902,1715381499329,-500.0,0.00066849,120]
[326799903,1715381499338,-1273.71,0.00066849,120]
[326799904,1715381499347,-510.44,0.00066849,2]
[326799905,1715381499355,-1389.39,0.00066849,120]
[326799906,1715381499364,-300.0,0.00066849,7]
[326799907,1715381499373,-3744.03,0.00066849,120]
[326799908,1715381499382,-1011.1,0.00066849,120]
[326799909,1715381499391,-500.0,0.00066849,120]
[326799910,1715381499400,-650.98,0.00066849,120]
[326799911,1715381499408,-500.0,0.00066849,120]
[326799912,1715381499417,-500.0,0.00066849,120]
[326799913,1715381499426,-197.257994,0.00066878,2]
[326799914,1715381499435,-166.03447125,0.00066889,120]
[326799915,1715381499444,-5528.37048134,0.000669,120]
[326799916,1715381499453,-1412.8469889,0.00066931,120]
[326799917,1715381499462,-200.0,0.00067013,120]
[326799918,1715381499471,-150.0,0.00067068,2]
[326799919,1715381499480,-1412.8469889,0.00067176,120]
[326799920,1715381499489,-1798.14077635,0.00067268,120]
[326799921,1715381499498,-151.0,0.00067425,120]
[326799922,1715381499507,-150.0,0.00067627,2]
[326799923,1715381499516,-153.0,0.00067671,60]
[326799924,1715381499525,-153.0,0.00067671,60]
[326799925,1715381499534,-153.0,0.00067671,60]
[326799926,1715381499544,-153.0,0.00067671,60]
[326799927,1715381499553,-153.0,0.00067671,60]
[326799928,1715381499562,-306.0,0.00067671,60]
[326799929,1715381499571,-974.14542008,0.00067891,120]
[326799930,1715381499580,-557.0,0.00067935,120]
[326799931,1715381499589,-557.0,0.00067935,120]
[326799932,1715381499598,-602.21,0.00067945,120]
[326799933,1715381499608,-500.0,0.00067945,120]
[326799934,1715381499617,-500.0,0.00067945,120]
[326799935,1715381499626,-500.0,0.00067945,120]
[326799936,1715381499635,-168.6289025,0.00067945,120]
[326799937,1715381499644,-500.0,0.00067945,120]
[326799938,1715381499654,-1165.04,0.00067945,120]
[326799939,1715381499663,-549.89,0.00067945,120]
[326799940,1715381499672,-500.0,0.00067945,120]
[326799941,1715381499681,-500.0,0.00067945,7]
[326799942,1715381499690,-500.0,0.00067945,120]
[326799943,1715381499699,-500.0,0.00067945,120]
[326799944,1715381499708,-500.0,0.00067945,120]
[326799945,1715381499717,-500.0,0.00067945,120]
[326799946,1715381499726,-500.0,0.00067945,120]
[326799947,1715381499737,-609.89,0.00067945,120]
[326799948,1715381499746,-2148.21,0.00067945,120]
[326799949,1715381499755,-500.0,0.00067945,120]
[326799950,1715381499764,-500.0,0.00067945,120]
[326799951,1715381499773,-500.0,0.00067945,120]
[326799952,1715381499782,-500.0,0.00067945,120]
[326799953,1715381499792,-541.11,0.00067945,120]
[326799954,1715381499801,-574.68,0.00067945,120]
[326799955,1715381499811,-500.0,0.00067945,120]
[326799956,1715381499820,-500.0,0.00067945,120]
[326799957,1715381499829,-1271.67,0.00067945,7]
[326799958,1715381499838,-1161.06,0.00067945,120]
[326799959,1715381499848,-500.0,0.00067945,120]
[326799960,1715381499857,-664.96,0.00067945,120]
[326799961,1715381499866,-606.82,0.00067945,120]
[326799962,1715381499876,-2047.19,0.00067945,120]
[326799963,1715381499885,-500.0,0.00067945,120]
[326799964,1715381499894,-666.88,0.00067945,120]
[326799965,1715381499903,-2115.98,0.00067945,4]
[326799966,1715381499913,-744.8,0.00067945,120]
[326799967,1715381499922,-671.73,0.00067945,120]
[326799968,1715381499931,-1253.15,0.00067945,120]
[326799969,1715381499941,-2379.45,0.00067945,120]
[326799970,1715381499950,-591.68,0.00067945,120]
[326799971,1715381499959,-500.0,0.00067945,120]
[326799972,1715381499969,-576.78,0.00067945,120]
[326799973,1715381499979,-509.25052209,0.00067945,120]
[326799974,1715381499989,-534.42,0.00067945,120]
[326799975,1715381499999,-232.08600081,0.00067945,120]
[326799976,1715381500008,-500.0,0.00067945,120]
[326799977,1715381500018,-500.0,0.00067945,120]
[326799978,1715381500028,-1078.44,0.00067945,120]
[326799979,1715381500037,-500.0,0.00067945,120]
[326799980,1715381500047,-1489.95,0.00067945,120]
[326799981,1715381500056,-500.0,0.00067945,120]
[326799982,1715381500065,-357.97024239,0.00067945,120]
[326799983,1715381500075,-1505.02,0.00067945,120]
[326799984,1715381500084,-821.7,0.00067945,120]
[326799985,1715381500093,-847.21,0.00067945,120]
[326799986,1715381500103,-500.0,0.00067945,120]
[326799987,1715381500113,-500.0,0.00067945,120]
[326799988,1715381500122,-1744.14,0.00067945,2]
[326799989,1715381500132,-1487.03,0.00067945,120]
[326799990,1715381500141,-500.0,0.00067945,120]
[326799991,1715381500151,-500.0,0.00067945,120]
[326799992,1715381500160,-2725.02,0.00067945,120]
[326799993,1715381500170,-1524.58,0.00067945,120]
[326799994,1715381500185,-621.58,0.00067945,120]
[326799995,1715381500194,-550.87,0.00067945,120]
[326799996,1715381500203,-670.43,0.00067945,120]
[326799997,1715381500213,-1135.37,0.00067945,120]
[326799998,1715381500222,-515.4,0.00067945,120]
[326799999,1715381500232,-500.0,0.00067945,120]
[326800000,1715381500241,-700.54,0.00067945,120]
[326800001,1715381500250,-565.96,0.00067945,120]
[326800002,1715381500262,-509.61547207,0.00067945,120]
[326800003,1715381500271,-2668.96,0.00067945,120]
[326800004,1715381500280,-571.02,0.00067945,120]
[326800005,1715381500289,-500.0,0.00067945,120]
[326800006,1715381500299,-500.0,0.00067945,120]
[326800007,1715381500308,-820.35,0.00067945,120]
[326800008,1715381500317,-501.21,0.00067945,120]
[326800009,1715381500326,-500.0,0.00067945,120]
[326800010,1715381500335,-500.0,0.00067945,120]